Workbook

Sheet Services-Produits
A1: Produit | B1: Price | C1: BuyPrice23 | D1: profit23 | E1: Rabatt(%) | F1: BuyPrice nach Rabatt | G1: MwsT(%) | H1: profit23% | I1: Price24 | J1: BuyPrice24
A2: 15% discount for Gut Microbiome Therapy | B2: 1036.88 | D2: =B2-C2 -> 1036.88
A3: Abbott Freestyle Libre 2 | B3: 91.4 | C3: 91.4 | D3: =IF(C3="","",IFERROR(B3-C3,"")) -> 0 | E3: 3 | G3: 7.7
A4: Abbott Freestyle libre 2 sensor 14 days | B4: 65.3 | C4: 65.3 | D4: =IF(C4="","",IFERROR(B4-C4,"")) -> 0 | E4: 3 | G4: 7.7
A5: Abbott Sensor | B5: 65.3
A6: Artesunat | B6: 67.2
A7: Bactoflor | B7: 47.8
A8: Bactoflor Kinder | B8: 35.74
A9: Bactoflor-2023 | B9: 69.8
A10: Biomo Lipon 600 | B10: 35.7
A11: Biotin | B11: 37.25
A12: Biotin + NaCl | B12: 37.25
A13: B-Kompleks | B13: 46.8
A14: Black cumin capsules | B14: 34.8
A15: Body Lotion
A16: Bosvene Akba | B16: 215.11
A17: Cholin Inject | B17: 43
A18: C-Intercell 650 mg Vitamin C, 90 Kapseln | B18: 27.99
A19: Cleanser | B19: 17.9
A20: Curcumin + NaCl 0,9% | B20: 116.22
A21: Curcumin 150 mg | B21: 229.2
A22: curcumin 75 mg | B22: 116.22 | C22: 46.22 | D22: 70
A23: E-Inject | B23: 41.2
A24: Epinativ Injection | B24: 133.61
A25: Face cream | B25: 44.9
A26: Face treatment Chin contouring | B26: 600
A27: Fermanose | B27: 46.2
A28: Fiber-Intercell | B28: 40.49
A29: Gut Microbiome Therapy | B29: 7199.75
A30: Gut Microbiome Therapy | B30: 7199.75
A31: Gynophilus 14 Stk. | B31: 19.8 | C31: 19.1 | D31: 0.7 | E31: 10 | G31: 7.7
A32: Hair tonic | B32: 24.95
A33: Hepar | B33: 43.7
A34: Hydroxiprolin | B34: 68.9
A35: Hypericin | B35: 198.7
A36: Immune infusion | B36: 84
A37: Immunocare | B37: 220
A38: Immunocare, personalised | B38: 195.7
A39: Infraorbital | B39: 600
A40: Infusion & Injections:
A41: Infusion:
A42: Infusion: Curcumin 75 mg | B42: 116.22
A43: Infusion: Nicotiamide | B43: 179.8
A44: Infusion: Shoga Öl | B44: 670
A45: Injection:
A46: Jantung (Herz) | B46: 584.5
A47: Jardiance Met 5/850 mg, 90 stk. | B47: 662.8 | E47: 10 | G47: 2.5
A48: K2 & D3 | B48: 34.7
A49: Kantong kemih (Harnblase) | B49: 381.35
A50: Laetia Kaps 80 mg, 56 stk. | B50: 45.3 | C50: 45.9 | D50: -0.6 | E50: 10 | G50: 2.5
A51: Liserotota | B51: 345.3
A52: Liv 52, 100 Stk. | B52: 14.9 | C52: 29.8 | D52: -14.9 | E52: 10 | G52: 2.5
A53: Magentropfen | B53: 23
A54: Magnesium | B54: 25.45
A55: Magnesium 1000 mg | B55: 34.68
A56: Magnesium Intercell | B56: 15.1
A57: Memoserin 90 Kapseln | B57: 67.7
A58: Microbiome | B58: 74.95
A59: Microbiome body lotion | B59: 29.9
A60: Microcare
A61: Microcare 4 months | B61: 571.05
A62: Microcare personalised
A63: Microcare personalised Budi Gunawan 3 months | B63: 1207.35
A64: Microcare personalised Sudaeti Susilowati Rahayu 3 months | B64: 1004.97
A65: Microniome face serum | B65: 69.9
A66: Muskulatur (Otot) | B66: 286.4
A67: NAD+ | B67: 219.66
A68: Neuro Amino | B68: 163.2 | D68: =IF(C68="","",IFERROR(B68-C68,"")) -> 
A69: Nicotinamide | B69: 179.8
A70: NMN, Rapamune, Sildenafil & Tadalafil | B70: 67.8
A71: Oliphenolia | B71: 183.51
A72: Oliphenolia + NaCl 0,9% 150 ml | B72: 183.51
A73: Omega 7 | B73: 82.6
A74: Omega 7.0 | B74: 81.35
A75: Oregano oil | B75: 32.85
A76: Otak kecil (Kleinhirn) | B76: 288
A77: Ozempic Dualdose 2 mg/1.5 ml, 25 Stk. | B77: 129.8 | C77: 129.8 | D77: 0 | E77: 10 | G77: 2.5
A78: Phenylalanine | B78: 106.4
A79: Phospolipide | B79: 31.28
A80: Prodigest | B80: 72.35
A81: Protokoll Lösung | B81: 147.2
A82: Q10 i.v. sensitive | B82: 178.8 | C82: 37.82 | D82: 140.98
A83: Repatha Inj 140MG/ML, 2 Stk. | B83: 233.55 | C83: 450.25 | D83: -216.7 | E83: 5 | G83: 2.5
A84: Reservatrol + NaCl 0,9% 300 ml | B84: 178
A85: Resveratrol | B85: 178
A86: Riboflavin | B86: 127.4
A87: RNA | B87: 516.7
A88: RNA Heart | B88: 516.7
A89: RNA Injections 4 vials | B89: 516.7
A90: RNA Kidney | B90: 438.15
A91: RNA Liver | B91: 629.45
A92: RNA Thymus | B92: 516.7
A93: Salvans | B93: 13.05
A94: Selenium | B94: 41.6
A95: Senolytics mixture | B95: 670
A96: Senolytics Mixture | B96: 670
A97: Spermidin 20 mg | B97: 182.35 | C97: 82.35 | D97: 100
A98: Subtotal in CHF:
A99: Supplement & Medication:
A100: Tadalafil-Mepha 10 mg | B100: 115
A101: Tadalafil-Mepha 2.5 mg, 28 Stk. | B101: 115 | C101: 115 | D101: 0 | E101: 10 | G101: 2.5
A102: Tadalafil-Mepha 5 mg, 28 Stk. | B102: 115 | C102: 115 | D102: 0 | E102: 10 | G102: 2.5
A103: Tamsulosin Mepha Ret, 0,4 mg 100 | B103: 59.9 | C103: 59.85 | D103: 0.05 | E103: 10 | G103: 2.5
A104: Testicle | B104: 372.45
A105: Thymus | B105: 516.7
A106: Ventrisana | B106: 19.2
A107: Vistabel 3 zones | B107: 750
A108: Vit B12 Inj 1000MCG 10AM | B108: 8.1 | C108: 17.8 | D108: -9.7 | E108: 10 | G108: 2.5
A109: Vit C | B109: 27.99
A110: Vit D3 | B110: 37
A111: Vit D3 | B111: 29.8
A112: Vit E Inject I.M.
A113: Vit, B Komplex | B113: 46.8
A114: Vit. C, Zn | B114: 21.4
A115: Vit. E IM
A116: Vit-C Intercell | B116: 27.99
A117: Xanax | B117: 42.7
A118: Xarelto | B118: 42.15
A119: Zentra inject | B119: 60
A120: Epogam 1000, 1000 mg | C120: 141.35 | D120: -141.35 | E120: 10 | G120: 2.5
A121: Femannose 60 Btl 4G | C121: 87.8 | D121: -87.8 | E121: 10 | G121: 2.5
A122: Phytopharma Kaps, 500 mg | C122: 34.8 | D122: -34.8 | E122: 10 | G122: 2.5
A123: Sandorn Argousier Omega 7 Kaps, 180 Stk, | C123: 81.35 | D123: -81.35 | E123: 10 | G123: 2.5
A124: Vit D3 4000 IE/ml | C124: 16.15 | D124: -16.15 | E124: 10 | G124: 2.5
A125: Vividrin Ectoin 10 ml | C125: 24.5 | D125: -24.5 | E125: 10 | G125: 7.7
A126: Estradot MatrixPFL 37.5 MCG/24h 24 Stk. | C126: 38.55 | D126: -38.55 | E126: 10 | G126: 2.5 | K126: 36.4
A127: Tadalafil Mepha 5 mg, 84 Stk. | C127: 273 | D127: -273 | E127: 10 | G127: 2.5
A128: Xanax Ret Tabl 1 mg, 30 Stk. | C128: 14.8 | D128: -14.8 | E128: 10 | G128: 2.5
A129: Xanax Ret Tabl 2 mg, 30 Stk. | C129: 25.5 | D129: -25.5 | E129: 10 | G129: 2.5
A130: Xanax Tabl 1 mg, 30 Stk. | C130: 8.75 | D130: -8.75 | E130: 10 | G130: 2.5
A131: Xanax Tabl 2 mg, 100 Stk. | C131: 42.7 | D131: -42.7 | E131: 10 | G131: 2.5
A132: Ozempic Dualdose 2 mg/1.5 ml, 10 Stk. | C132: 129.8 | D132: =IF(C132="","",IFERROR(B132-C132,"")) -> -129.8 | E132: 10 | G132: 2.5
A133: Clopidogrel Mepha Lactab 75 mg, 84 Stk. | C133: 86.6 | D133: -86.6 | E133: 0 | G133: 2.5
A134: Aminosäureinfusion | C134: 286.44 | D134: -286.44
A135: Otrivin 0.1% 10 M | C135: 12.7 | D135: -12.7 | E135: 10 | G135: 2.5
A136: German Insulin Medikament Kühlbox No 22 | C136: 45 | D136: -45 | E136: 10 | G136: 7.7
A137: Lubex Hautwaschemulsion PH 5.5 DISP 500 | C137: 29.95 | D137: -29.95 | E137: 10 | G137: 2.5
A138: PM505490 Magendarm tropfen 100 ml | C138: 36 | D138: -36 | E138: 10 | G138: 7.7
A139: Novagin Tropfen 0.5 g/ml FI 10 ml | C139: 9.8 | D139: -9.8 | E139: 0 | G139: 2.5
A140: Xanax Tabl 1 MG, 100 Stk. | C140: 25.1 | D140: -25.1 | E140: 10 | G140: 2.5
A141: Linola creme Halbfett TB, 100 ml | C141: 16.5 | D141: -16.5 | E141: 10 | G141: 7.7
A142: Vagi-Hex VAG Tabl. 10 mg, 12 Stk. | C142: 17.75 | D142: -17.75 | E142: 10 | G142: 2.5
A143: Zovirax LIP Fieberblasencreme TB 2 G | C143: 20.35 | D143: -20.35 | E143: 10 | G143: 2.5
A144: Burgerstein Mood Kaps, 60 Stk. | C144: 40.5 | D144: -40.5 | E144: 10 | G144: 2.5
A145: Utrogestran Kaps 100 mg, 90 Stk. | C145: 36.15 | D145: -36.15 | E145: 10 | G145: 2.5
A146: Xanax Ret Tabl 1 mg, 100 Stk. | C146: 34.55 | D146: -34.55 | E146: 10 | G146: 2.5
A147: Xanax Tabl 2 mg DS, 100 Stk. | C147: 42.7 | D147: -42.7 | E147: 10 | G147: 2.5
A148: Aldara creme 5% BTL, 12 Stk. | C148: 91.8 | D148: -91.8 | E148: 10 | G148: 2.5
A149: Blissel VAG Gel 0.05 MG/G mit 1 Applikat | C149: 41 | D149: -41 | E149: 10 | G149: 2.5
A150: Dafalgan FilmTabl 1 g, 100 Stk. | C150: 27.5 | D150: -27.5 | G150: 2.5
A151: Dafalgan FilmTabl 1 g, 40 Stk. | C151: 15.35 | D151: -15.35 | E151: 10 | G151: 2.5
A152: Novofine Injektionsnadeln 31G 6mm, 100 Stk. | C152: 32.55 | D152: -32.55 | E152: 10 | G152: 7.7
A153: Stilnox CR Ret Tabl. 6.25 mg, 14 Stk. | C153: 6.3 | D153: -6.3 | E153: 10 | G153: 2.5
A154: Bulboid Supp ERW, 10 Stk. | C154: 9.45 | D154: -9.45 | E154: 10 | G154: 2.5
A155: Carbolevure Kaps erw, 20 Stk. | C155: 16.8 | D155: -16.8 | E155: 10 | G155: 2.5
A156: Estradot MatrixPFL 25 MCG/24h 24 Stk. | C156: 38.55 | D156: -38.55 | E156: 10 | G156: 2.5
A157: Magen-Darm Tropfen 50 ml | C157: 23 | D157: -23 | E157: 10 | G157: 2.5
A158: Tangle Teezer Thick & Curly Haarbürste S | C158: 19.9 | D158: -19.9 | E158: 10 | G158: 7.7
A159: Tangle Teezer Toupier Stylingbürste SCH | C159: 19.9 | D159: -19.9 | E159: 10 | G159: 7.7
A160: Tetralysal Kaps 300 mg, 28 Stk. | C160: 25.85 | D160: -25.85 | E160: 10 | G160: 2.5

Sheet Reference
A3: Invoice: 55H-92401011
A4: 15.02.2024
A14: Description | B14: Qty | C14: Price | D14: Amount
A17: curcumin 75 mg | B17: 3 | C17: =IFERROR(VLOOKUP(A17,'Services-Produits'!A1:B116,2,FALSE),"") -> 116.22 | D17: =IFERROR(B17*C17,"") -> 348.66
C18: =IFERROR(VLOOKUP(A18,'Services-Produits'!A2:B117,2,FALSE),"") ->  | D18: =IFERROR(B18*C18,"") -> 
C19: =IFERROR(VLOOKUP(A19,'Services-Produits'!A3:B118,2,FALSE),"") -> 
C20: =IFERROR(VLOOKUP(A20,'Services-Produits'!A4:B119,2,FALSE),"") -> 
C21: =IFERROR(VLOOKUP(A21,'Services-Produits'!A4:B120,2,FALSE),"") -> 
C22: =IFERROR(VLOOKUP(A22,'Services-Produits'!A5:B121,2,FALSE),"") -> 
C23: =IFERROR(VLOOKUP(A23,'Services-Produits'!A6:B122,2,FALSE),"") -> 
C24: =IFERROR(VLOOKUP(A24,'Services-Produits'!A7:B123,2,FALSE),"") -> 
C25: =IFERROR(VLOOKUP(A25,'Services-Produits'!A8:B124,2,FALSE),"") -> 
C26: =IFERROR(VLOOKUP(A26,'Services-Produits'!A9:B125,2,FALSE),"") -> 
C27: =IFERROR(VLOOKUP(A27,'Services-Produits'!A10:B126,2,FALSE),"") -> 
C28: =IFERROR(VLOOKUP(A28,'Services-Produits'!A11:B127,2,FALSE),"") -> 
C29: =IFERROR(VLOOKUP(A29,'Services-Produits'!A12:B128,2,FALSE),"") -> 
C30: =IFERROR(VLOOKUP(A30,'Services-Produits'!A13:B129,2,FALSE),"") -> 
C31: =IFERROR(VLOOKUP(A31,'Services-Produits'!A14:B130,2,FALSE),"") -> 
C32: =IFERROR(VLOOKUP(A32,'Services-Produits'!A15:B131,2,FALSE),"") -> 
C33: =IFERROR(VLOOKUP(A33,'Services-Produits'!A16:B132,2,FALSE),"") -> 
C34: =IFERROR(VLOOKUP(A34,'Services-Produits'!A17:B133,2,FALSE),"") -> 
C35: =IFERROR(VLOOKUP(A35,'Services-Produits'!A18:B134,2,FALSE),"") -> 
C36: =IFERROR(VLOOKUP(A36,'Services-Produits'!A19:B135,2,FALSE),"") -> 
C37: =IFERROR(VLOOKUP(A37,'Services-Produits'!A20:B136,2,FALSE),"") -> 
A38: Total in CHF | D38: =SUM(D17:D37) -> 348.66
A40: Thank you very much for your trust!

Sheet Patients
A1: Adex Yudiswan | D1: Jakarta | E1: Indonesia | F1: M | G1: 1974-12-03 | H1: SM
A2: Agus Andriyanto | D2: Jakarta | E2: Indonesia | F2: M | G2: 1967-02-16 | H2: SM
A3: Armand Wahyudi Hartono | D3: Jakarta | E3: Indonesia | F3: M | G3: 1975-05-20 | H3: SM
A4: Budi Satrio | D4: Jakarta | E4: Indonesia | F4: M | G4: 1976-05-31 | H4: SBL
A5: Chan Choi Moi | D5: Jakarta | E5: Indonesia | F5: F | G5: 1972-04-28 | H5: SM
A6: Deddy Prasetyo | D6: Jakarta | E6: Indonesia | F6: M | G6: 1968-07-26 | H6: SM
A7: Dian Suri Iriani | D7: Jakarta | E7: Indonesia | F7: F | G7: 1979-08-02 | H7: SBL
A8: Dobias Iskandar | D8: Jakarta | E8: Indonesia | F8: M | G8: 1965-11-16 | H8: SM
A9: Eileen Patricia Hartono | D9: Jakarta | E9: Indonesia | F9: F | G9: 1973-05-01 | H9: SBL
A10: Erminda Melayeni | D10: Jakarta | E10: Indonesia | F10: F | G10: 1975-10-25 | H10: SM
A11: Escy Soeleiman | D11: Jakarta | E11: Indonesia | F11: F | G11: 1965-12-09 | H11: SBL
A12: Evy Celiyanti | D12: Jakarta | E12: Indonesia | F12: F | G12: 1972-03-07 | H12: SM
A13: Herman Herry Adranacus | D13: Jakarta | E13: Indonesia | F13: M | G13: 1962-11-26 | H13: SM
A14: Isandi Harahap | D14: Jakarta | E14: Indonesia | F14: M | G14: 1958-12-10 | H14: SBL
A15: Karyoto | D15: Jakarta | E15: Indonesia | F15: M | G15: 1968-10-27 | H15: SBL
A16: Lina Iskandar | D16: Jakarta | E16: Indonesia | F16: F | G16: 1970-06-25 | H16: SBL
A17: Martha Dwi Maryani | D17: Jakarta | E17: Indonesia | F17: F | G17: 1969-05-21 | H17: SM
A18: Muhamad Mardiono | D18: Jakarta | E18: Indonesia | F18: M | G18: 1957-07-11 | H18: SM
A19: Muljadi Tjahjono | D19: Jakarta | E19: Indonesia | F19: M | G19: 1965-07-22 | H19: SM
A20: Nyoman Adhi Suryadnyana | D20: Jakarta | E20: Indonesia | F20: M | G20: 1974-10-15 | H20: SBL
A21: Romyus Permana | D21: Jakarta | E21: Indonesia | F21: M | G21: 1978-10-20 | H21: SBL
A22: Salim Lan Jaya Liem | D22: Jakarta | E22: Indonesia | F22: M | G22: 1971-06-01 | H22: SM
A23: Samuel Bob | D23: Jakarta | E23: Indonesia | F23: M | G23: 1974-01-04 | H23: SM
A24: Samuel Rusli | D24: Jakarta | E24: Indonesia | F24: M | G24: 1968-04-01 | H24: SM
A25: Shanti Tan | D25: Jakarta | E25: Indonesia | F25: F | G25: 1978-09-10 | H25: SBL
A26: Shu Shu | D26: Jakarta | E26: Indonesia | F26: F | H26: SBL
A27: Sri Wahyuswinta | D27: Jakarta | E27: Indonesia | F27: F | G27: 1969-04-04 | H27: SM
A28: Tan Kim Siong | D28: Jakarta | E28: Indonesia | F28: M | G28: 1970-11-09 | H28: SM
A29: Tan Siew Chang | D29: Jakarta | E29: Indonesia | F29: F | G29: 1967-01-13 | H29: SM
A30: Titi Salim | D30: Jakarta | E30: Indonesia | F30: M | G30: 1971-06-01 | H30: SBL
A31: Wahyu Widada | D31: Jakarta | E31: Indonesia | F31: M | G31: 1969-09-11 | H31: SM
A32: Wisnu Hermawan | D32: Jakarta | E32: Indonesia | F32: M | G32: 1972-02-16 | H32: SM
A33: Yenni Rista S | D33: Jakarta | E33: Indonesia | F33: F | G33: 1958-07-18 | H33: SBL
A34: Yenny Wijaya | D34: Jakarta | E34: Indonesia | F34: F | G34: 1973-03-16 | H34: SM
A35: Yuldi Yusman | D35: Jakarta | E35: Indonesia | F35: M | G35: 1975-07-29 | H35: SM
A36: Yulia Gunawan | D36: Jakarta | E36: Indonesia | F36: F | G36: 1983-01-06 | H36: SM
A37: Ita Yuliati | D37: Jakarta | E37: Indonesia | F37: F | G37: 1960-07-30 | H37: SBL
A38: Doni Irawan Soenarso | D38: Jakarta | E38: Indonesia | F38: M | G38: 1960-09-13 | H38: SBL
A39: Ken Anjani | D39: Jakarta | E39: Indonesia | F39: F | G39: 1989-09-11 | H39: SBL
A40: Vino Romano | D40: Jakarta | E40: Indonesia | F40: M | G40: 1988-11-11 | H40: SBL
A41: Mouna F. Said | D41: Jakarta | E41: Indonesia | F41: F | G41: 1975-09-25 | H41: SBL
A42: Tschun Tschun | D42: Jakarta | E42: Indonesia | H42: SBL
A43: Cun | D43: Jakarta | E43: Indonesia | H43: SBL
A44: Samuel | D44: Jakarta | E44: Indonesia | H44: SBL
A45: Gadiza | D45: Jakarta | E45: Indonesia | H45: SBL
A46: Adit | D46: Jakarta | E46: Indonesia | H46: SBL
A47: HH | D47: Jakarta | E47: Indonesia | H47: SBL
A48: Retina | D48: Jakarta | E48: Indonesia | H48: SBL
A49: Theresia | D49: Jakarta | E49: Indonesia | H49: SBL
A50: Yuldi | D50: Jakarta | E50: Indonesia | H50: SBL
A51: Otty Fauzi | D51: Jakarta | E51: Indonesia | H51: SBL
A52: Intan Fauzi | D52: Jakarta | E52: Indonesia | H52: SBL
A53: Esther Fauzi | D53: Jakarta | E53: Indonesia | H53: SBL
A54: Henny | D54: Jakarta | E54: Indonesia | F54: F | H54: SBL

Sheet Ken Anjani
A3: Invoice: 55H-92401002
A4: 15.02.2024
A9: Mrs. Ken Anjani
A10: Jakarta
A11: Indonesia
A14: Description | B14: Qty | C14: Price | D14: Amount
A15: Patient: Ken Anjani, F, 11.09.1989
A17: Gut Microbiome Therapy | B17: 4 | C17: =IFERROR(VLOOKUP(A17,'Services-Produits'!A1:B116,2,FALSE),"") -> 7199.75 | D17: =IFERROR(B17*C17,"") -> 28799
C18: =IFERROR(VLOOKUP(A18,'Services-Produits'!A2:B117,2,FALSE),"") ->  | D18: =IFERROR(B18*C18,"") -> 
A19: Patient: Vino Romano, M, 11.11.1988 | C19: =IFERROR(VLOOKUP(A19,'Services-Produits'!A3:B118,2,FALSE),"") -> 
A20: Gut Microbiome Therapy | B20: 4 | C20: =IFERROR(VLOOKUP(A20,'Services-Produits'!A4:B119,2,FALSE),"") -> 7199.75 | D20: 28799
C21: =IFERROR(VLOOKUP(A21,'Services-Produits'!A4:B120,2,FALSE),"") -> 
A22: Infusion & Injections:
A23: Hypericin | B23: 1 | C23: =IFERROR(VLOOKUP(A23,'Services-Produits'!A6:B122,2,FALSE),"") -> 198.7 | D23: 198.7
A24: Protokoll Lösung | B24: 1 | C24: =IFERROR(VLOOKUP(A24,'Services-Produits'!A7:B123,2,FALSE),"") -> 147.2 | D24: 147.2
A25: Artesunat | B25: 2 | C25: 67.2 | D25: 134.4
A26: Cholin Inject | B26: 20 | C26: =IFERROR(VLOOKUP(A26,'Services-Produits'!A9:B125,2,FALSE),"") -> 43 | D26: 860
A27: Vit B12 | B27: 2 | C27: =IFERROR(VLOOKUP(A27,'Services-Produits'!A10:B126,2,FALSE),"") -> 
A28: RNA Kidney | B28: 8 | C28: =IFERROR(VLOOKUP(A28,'Services-Produits'!A11:B127,2,FALSE),"") -> 438.15 | D28: 3505.2
A29: RNA Liver | B29: 8 | C29: =IFERROR(VLOOKUP(A29,'Services-Produits'!A12:B128,2,FALSE),"") -> 629.45 | D29: 5035.6
C30: =IFERROR(VLOOKUP(A30,'Services-Produits'!A13:B129,2,FALSE),"") -> 
A31: Supplement & Medication:
A32: Bactoflor Kinder | B32: 1 | C32: 35.74 | D32: 35.74
A33: Laetia | B33: 2 | C33: =IFERROR(VLOOKUP(A33,'Services-Produits'!A16:B132,2,FALSE),"") -> 
C34: =IFERROR(VLOOKUP(A34,'Services-Produits'!A17:B133,2,FALSE),"") -> 
A35: Subtotal in CHF | D35: =SUM(D17:D33) -> 67514.84
A36: Payment received by cash 07.02.2024 | D36: -8423.93
C37: =IFERROR(VLOOKUP(A37,'Services-Produits'!A20:B136,2,FALSE),"") -> 
A38: Total in CHF | D38: =SUM(D35+D36) -> 59090.91
A40: Thank you very much for your trust!

Sheet Henny
A3: Invoice: 55H-92401011
A4: 14.02.2024
A9: Mrs. Henny
A10: jakarta
A11: Indonesie
A14: Description | B14: Qty | C14: Price | D14: Amount
A15: Patient: Henny
A17: curcumin 75 mg | B17: 3 | C17: =IFERROR(VLOOKUP(A17,'Services-Produits'!A1:B116,2,FALSE),"") -> 116.22 | D17: =IFERROR(B17*C17,"") -> 348.66
A18: Vit C | B18: 4 | C18: =IFERROR(VLOOKUP(A18,'Services-Produits'!A2:B117,2,FALSE),"") -> 27.99 | D18: =IFERROR(B18*C18,"") -> 111.96
A19: Microbiome | B19: 4 | C19: =IFERROR(VLOOKUP(A19,'Services-Produits'!A3:B118,2,FALSE),"") -> 74.95 | D19: 299.8
A20: Biomo Lipon 600 | B20: 2 | C20: =IFERROR(VLOOKUP(A20,'Services-Produits'!A4:B119,2,FALSE),"") -> 35.7 | D20: 71.4
A21: Artesunat | B21: 4 | C21: =IFERROR(VLOOKUP(A21,'Services-Produits'!A4:B120,2,FALSE),"") -> 67.2 | D21: 268.8
A22: Protokoll Lösung | B22: 1 | C22: =IFERROR(VLOOKUP(A22,'Services-Produits'!A5:B121,2,FALSE),"") -> 147.2 | D22: 147.2
C23: =IFERROR(VLOOKUP(A23,'Services-Produits'!A6:B122,2,FALSE),"") -> 
C24: =IFERROR(VLOOKUP(A24,'Services-Produits'!A7:B123,2,FALSE),"") -> 
C25: =IFERROR(VLOOKUP(A25,'Services-Produits'!A8:B124,2,FALSE),"") -> 
C26: =IFERROR(VLOOKUP(A26,'Services-Produits'!A9:B125,2,FALSE),"") -> 
C27: =IFERROR(VLOOKUP(A27,'Services-Produits'!A10:B126,2,FALSE),"") -> 
C28: =IFERROR(VLOOKUP(A28,'Services-Produits'!A11:B127,2,FALSE),"") -> 
C29: =IFERROR(VLOOKUP(A29,'Services-Produits'!A12:B128,2,FALSE),"") -> 
C30: =IFERROR(VLOOKUP(A30,'Services-Produits'!A13:B129,2,FALSE),"") -> 
C31: =IFERROR(VLOOKUP(A31,'Services-Produits'!A14:B130,2,FALSE),"") -> 
C32: =IFERROR(VLOOKUP(A32,'Services-Produits'!A15:B131,2,FALSE),"") -> 
C33: =IFERROR(VLOOKUP(A33,'Services-Produits'!A16:B132,2,FALSE),"") -> 
C34: =IFERROR(VLOOKUP(A34,'Services-Produits'!A17:B133,2,FALSE),"") -> 
C35: =IFERROR(VLOOKUP(A35,'Services-Produits'!A18:B134,2,FALSE),"") -> 
C36: =IFERROR(VLOOKUP(A36,'Services-Produits'!A19:B135,2,FALSE),"") -> 
C37: =IFERROR(VLOOKUP(A37,'Services-Produits'!A20:B136,2,FALSE),"") -> 
A38: Total in CHF | D38: =SUM(D17:D37) -> 1247.82
A40: Thank you very much for your trust!

Sheet Test 2 pages
A3: Invoice: 55H-0231115
A4: 23.12.2023
C5: Treatment by | E5: Description | F5: Qty | G5: Price | H5: Amount
C6: Dr. Roger Gmür | E6: Patient: Deddy Prasetyo, M, 26.07.1968
C7: Zürich
E8: Gut Microbiome Therapy | F8: 4 | G8: =IFERROR(VLOOKUP(E8,'[1]Services-Produits'!#REF!,2,FALSE),"") ->  | H8: =IFERROR(F8*G8,"") -> 
A9: Mr. Deddy Prasetyo | E9: curcumin 75 mg | F9: 1 | G9: =IFERROR(VLOOKUP(E9,'[1]Services-Produits'!#REF!,2,FALSE),"") ->  | H9: =IFERROR(F9*G9,"") -> 
A10: Jakarta | E10: Bosvene Akba | F10: 1 | G10: =IFERROR(VLOOKUP(E10,'[1]Services-Produits'!#REF!,2,FALSE),"") -> 
A11: Indonesia | E11: Gynophilus | F11: 1 | G11: =IFERROR(VLOOKUP(E11,'[1]Services-Produits'!#REF!,2,FALSE),"") -> 
G12: =IFERROR(VLOOKUP(E12,'[1]Services-Produits'!#REF!,2,FALSE),"") -> 
G13: =IFERROR(VLOOKUP(E13,'[1]Services-Produits'!#REF!,2,FALSE),"") -> 
A14: Description | B14: Qty | C14: Price | D14: Amount | G14: =IFERROR(VLOOKUP(E14,'[1]Services-Produits'!#REF!,2,FALSE),"") -> 
A15: Patient: Deddy Prasetyo, M, 26.07.1968 | G15: =IFERROR(VLOOKUP(E15,'[1]Services-Produits'!#REF!,2,FALSE),"") -> 
G16: =IFERROR(VLOOKUP(E16,'[1]Services-Produits'!#REF!,2,FALSE),"") -> 
A17: Gut Microbiome Therapy | B17: 4 | C17: =IFERROR(VLOOKUP(A17,'[1]Services-Produits'!A1:B118,2,FALSE),"") -> 6912.5 | D17: =IFERROR(B17*C17,"") -> 27650 | G17: =IFERROR(VLOOKUP(E17,'[1]Services-Produits'!E1:F118,2,FALSE),"") -> 
A18: curcumin 75 mg | B18: 1 | C18: =IFERROR(VLOOKUP(A18,'[1]Services-Produits'!A2:B119,2,FALSE),"") -> 116.22 | D18: =IFERROR(B18*C18,"") -> 116.22 | G18: =IFERROR(VLOOKUP(E18,'[1]Services-Produits'!E2:F119,2,FALSE),"") -> 
A19: Bosvene Akba | B19: 1 | C19: =IFERROR(VLOOKUP(A19,'[1]Services-Produits'!A3:B120,2,FALSE),"") -> 215.11 | D19: 215.11 | G19: =IFERROR(VLOOKUP(E19,'[1]Services-Produits'!E3:F120,2,FALSE),"") -> 
A20: Gynophilus | B20: 1 | C20: =IFERROR(VLOOKUP(A20,'[1]Services-Produits'!A4:B121,2,FALSE),"") -> 19.8 | D20: 19.8 | G20: =IFERROR(VLOOKUP(E20,'[1]Services-Produits'!E4:F121,2,FALSE),"") -> 
A21: Microbiome | B21: 8 | C21: =IFERROR(VLOOKUP(A21,'[1]Services-Produits'!A5:B122,2,FALSE),"") -> 74.95 | D21: 599.6 | G21: =IFERROR(VLOOKUP(E21,'[1]Services-Produits'!E5:F122,2,FALSE),"") -> 
A22: Vit, B Komplex | B22: 1 | C22: =IFERROR(VLOOKUP(A22,'[1]Services-Produits'!A6:B123,2,FALSE),"") -> 46.8 | D22: 46.8 | G22: =IFERROR(VLOOKUP(E22,'[1]Services-Produits'!#REF!,2,FALSE),"") -> 
A23: Fermanose | B23: 2 | C23: =IFERROR(VLOOKUP(A23,'[1]Services-Produits'!A7:B124,2,FALSE),"") -> 46.2 | D23: 92.4 | G23: =IFERROR(VLOOKUP(E23,'[1]Services-Produits'!#REF!,2,FALSE),"") -> 
A24: Fermanose | B24: 6 | C24: =IFERROR(VLOOKUP(A24,'[1]Services-Produits'!A8:B125,2,FALSE),"") -> 46.2 | D24: 277.2 | G24: =IFERROR(VLOOKUP(E24,'[1]Services-Produits'!E1:F118,2,FALSE),"") -> 
A25: Oliphenolia | B25: 1 | C25: =IFERROR(VLOOKUP(A25,'[1]Services-Produits'!A9:B126,2,FALSE),"") -> 183.51 | D25: 183.51 | G25: =IFERROR(VLOOKUP(E25,'[1]Services-Produits'!E2:F119,2,FALSE),"") -> 
C26: =IFERROR(VLOOKUP(A26,'[1]Services-Produits'!A10:B127,2,FALSE),"") ->  | G26: =IFERROR(VLOOKUP(E26,'[1]Services-Produits'!E3:F120,2,FALSE),"") -> 
C27: =IFERROR(VLOOKUP(A27,'[1]Services-Produits'!A11:B128,2,FALSE),"") ->  | G27: =IFERROR(VLOOKUP(E27,'[1]Services-Produits'!E4:F121,2,FALSE),"") -> 
B28: 6 | C28: =IFERROR(VLOOKUP(A28,'[1]Services-Produits'!A12:B129,2,FALSE),"") ->  | G28: =IFERROR(VLOOKUP(E28,'[1]Services-Produits'!E5:F122,2,FALSE),"") -> 
B29: 1 | C29: =IFERROR(VLOOKUP(A29,'[1]Services-Produits'!A13:B130,2,FALSE),"") ->  | E29: Total in CHF | H29: =SUM(H8:H28) -> 0
B30: 1 | C30: =IFERROR(VLOOKUP(A30,'[1]Services-Produits'!A14:B131,2,FALSE),"") -> 
C31: =IFERROR(VLOOKUP(A31,'[1]Services-Produits'!A8:B125,2,FALSE),"") ->  | E31: Thank you very much for your trust!
B32: 1 | C32: =IFERROR(VLOOKUP(A32,'[1]Services-Produits'!A9:B126,2,FALSE),"") -> 
B33: 8 | C33: =IFERROR(VLOOKUP(A33,'[1]Services-Produits'!A10:B127,2,FALSE),"") -> 
B34: 1 | C34: =IFERROR(VLOOKUP(A34,'[1]Services-Produits'!A11:B128,2,FALSE),"") -> 
B35: 2 | C35: =IFERROR(VLOOKUP(A35,'[1]Services-Produits'!A12:B129,2,FALSE),"") -> 
B36: 9 | C36: =IFERROR(VLOOKUP(A36,'[1]Services-Produits'!A13:B130,2,FALSE),"") -> 
C38: =IFERROR(VLOOKUP(A38,'[1]Services-Produits'!A14:B131,2,FALSE),"") -> 
A39: Total in CHF | D39: =SUM(D17:D38) -> 29200.64
